bitfinex/quotes_BTCUSD_20251001
["timestamp","ask_amount","ask_price","bid_price","bid_amount"]
[1759327825837,1e-08,117180.0,117170.0,0.63157567]
[1759327826041,1e-08,117180.0,117170.0,0.98225567]
[1759327826259,1e-08,117180.0,117170.0,0.98232251]
[1759327826457,1e-08,117180.0,117170.0,0.98302251]
[1759327826680,0.05963925,117200.0,117190.0,0.17066302]
[1759327826883,0.00037187,117210.0,117200.0,0.17064846]
[1759327827092,0.17100577,117210.0,117200.0,0.1877133]
[1759327827418,0.17059103,117200.0,117180.0,0.59939656]
[1759327827618,0.17353103,117200.0,117190.0,0.43258302]
[1759327827795,0.17558103,117200.0,117190.0,0.43258302]
[1759327827998,0.17059103,117200.0,117190.0,0.43258302]
[1759327828225,0.17558103,117200.0,117190.0,0.43258302]
[1759327828563,0.17059103,117200.0,117190.0,0.43258302]
[1759327828687,0.17059103,117200.0,117190.0,0.17066302]
[1759327828888,0.17953746,117210.0,117190.0,0.43370302]
[1759327829142,0.18747633,117210.0,117190.0,0.43370302]
[1759327829536,0.17064846,117200.0,117190.0,0.43258302]
[1759327829748,0.17858733,117200.0,117190.0,0.43258302]
[1759327830081,0.17064846,117200.0,117190.0,0.17066302]
[1759327830286,0.17064846,117200.0,117190.0,0.43254302]
[1759327830493,0.17859012,117200.0,117190.0,0.43366302]
[1759327830714,0.00794166,117200.0,117190.0,0.43366302]
[1759327830918,0.17100577,117210.0,117200.0,0.17064846]
[1759327831119,0.00831321,117210.0,117200.0,0.1877133]
[1759327831384,0.17894711,117210.0,117200.0,0.17176846]
[1759327832279,0.17894711,117210.0,117190.0,0.43324302]
[1759327832280,0.17064846,117200.0,117190.0,0.51066302]
[1759327832516,0.00331187,117210.0,117200.0,0.17064846]
[1759327832777,0.17894877,117210.0,117200.0,0.17064846]
[1759327833647,0.17064846,117200.0,117180.0,0.2685959]
[1759327833856,0.01088464,117200.0,117190.0,0.77250302]
[1759327834076,0.01293464,117200.0,117190.0,0.77250302]
[1759327834294,0.00794464,117200.0,117190.0,0.77250302]
[1759327834721,0.17100577,117210.0,117190.0,0.77250302]
[1759327834940,0.00037187,117210.0,117200.0,0.1877133]
[1759327835143,0.17100577,117210.0,117200.0,0.17176846]
[1759327835361,0.00037187,117210.0,117200.0,0.17176846]
[1759327835573,0.17305577,117210.0,117200.0,0.17064846]
[1759327835792,0.17599577,117210.0,117200.0,0.17064846]
[1759327836007,0.00037187,117210.0,117200.0,0.17064846]
[1759327836250,0.00037187,117210.0,117200.0,0.1895333]
[1759327836803,0.17933518,117230.0,117210.0,0.17062137]
[1759327837143,0.1706339,117210.0,117200.0,0.17918088]
[1759327837345,0.17355934,117220.0,117210.0,0.1706339]
[1759327837487,0.17560934,117220.0,117200.0,0.17918088]
[1759327837669,0.1706339,117210.0,117200.0,0.17918088]
[1759327838071,0.0001397,117210.0,117200.0,0.44098088]
[1759327838296,0.0001397,117210.0,117200.0,0.18030088]
[1759327838481,0.1707736,117210.0,117200.0,0.17176846]
[1759327838681,0.1707736,117210.0,117200.0,0.43356846]
[1759327839105,0.1707736,117210.0,117200.0,0.17176846]
[1759327839311,0.1757636,117210.0,117190.0,0.51066302]
[1759327839466,0.17064846,117200.0,117190.0,0.51066302]
[1759327839673,0.00205,117200.0,117190.0,0.77246302]
[1759327839883,0.17365389,117210.0,117200.0,0.17064846]
[1759327840081,0.17071389,117210.0,117200.0,0.17064846]
[1759327840239,0.17570389,117210.0,117200.0,0.17064846]
[1759327840643,0.17071389,117210.0,117200.0,0.1877133]
[1759327841042,7.999e-05,117210.0,117200.0,0.1877133]
[1759327841254,7.999e-05,117210.0,117200.0,0.17176846]
[1759327841458,7.999e-05,117210.0,117200.0,0.1895333]
[1759327842074,7.999e-05,117210.0,117200.0,0.17176846]
[1759327842280,7.999e-05,117210.0,117200.0,0.27821877]
[1759327842489,7.999e-05,117210.0,117200.0,0.26115393]
[1759327843068,7.999e-05,117210.0,117200.0,0.60185393]
[1759327843475,7.999e-05,117210.0,117200.0,0.60115393]
[1759327843881,0.00212999,117210.0,117200.0,0.51064846]
[1759327844087,0.00212999,117210.0,117200.0,0.77240846]
[1759327844359,7.999e-05,117210.0,117200.0,0.51064846]
[1759327844545,7.999e-05,117210.0,117200.0,0.77352846]
[1759327844894,0.17276389,117210.0,117200.0,0.17064846]
[1759327845109,0.17570389,117210.0,117200.0,0.43236846]
[1759327845741,0.17570389,117210.0,117200.0,0.17064846]
[1759327845942,0.17570389,117210.0,117200.0,0.43236846]
[1759327846145,7.999e-05,117210.0,117200.0,0.43236846]
[1759327846344,0.17071389,117210.0,117200.0,0.43236846]
[1759327846548,0.17570389,117210.0,117200.0,0.43236846]
[1759327846923,0.17570389,117210.0,117190.0,0.51066302]
[1759327846924,0.17064846,117200.0,117190.0,0.51066302]
[1759327847154,0.17269846,117200.0,117190.0,0.77238302]
[1759327847607,0.00205,117200.0,117190.0,0.77238302]
[1759327847811,0.17365389,117210.0,117190.0,0.77238302]
[1759327848066,0.17365389,117210.0,117200.0,0.17064846]
[1759327848263,0.17570389,117210.0,117200.0,0.17064846]
[1759327848825,0.17066302,117190.0,117180.0,0.23982777]
[1759327849043,0.16541559,117190.0,117180.0,0.17067759]
[1759327849263,0.00205,117190.0,117180.0,0.43235759]
[1759327849477,0.17358846,117200.0,117180.0,0.43235759]
[1759327849703,0.27157105,117210.0,117190.0,0.17066302]
[1759327849916,0.52471936,117210.0,117200.0,0.17064846]
[1759327850130,0.26508936,117210.0,117190.0,0.17066302]
[1759327850345,0.17064846,117200.0,117190.0,0.17066302]
[1759327850757,7.999e-05,117210.0,117200.0,0.17064846]
[1759327850966,0.17071389,117210.0,117200.0,0.17064846]
[1759327851178,7.999e-05,117210.0,117200.0,0.17064846]
[1759327851393,7.999e-05,117210.0,117200.0,0.1888333]
[1759327852608,7.999e-05,117210.0,117200.0,0.17176846]
[1759327853011,7.999e-05,117210.0,117200.0,0.17246846]
[1759327853209,1.394e-05,117210.0,117200.0,0.1895333]
[1759327853411,0.25679139,117230.0,117220.0,0.17061934]
[1759327853412,0.25670597,117230.0,117220.0,0.17061934]
[1759327853668,0.25670597,117230.0,117210.0,0.43226229]
[1759327853669,0.17049211,117220.0,117210.0,0.43226229]
[1759327854016,0.17061934,117220.0,117210.0,0.43226229]
[1759327854216,0.18246976,117230.0,117210.0,0.43226229]
[1759327854494,0.19044842,117230.0,117220.0,0.01706193]
[1759327854693,0.19258842,117230.0,117220.0,0.01706193]
[1759327855124,0.17061934,117220.0,117190.0,0.40061734]
[1759327855329,0.00214,117200.0,117190.0,0.7724415]
[1759327855532,0.17385621,117210.0,117190.0,0.7724415]
[1759327855707,0.17063621,117210.0,117200.0,0.17064846]
[1759327856161,0.1706339,117210.0,117200.0,0.1877133]
[1759327856777,0.1791503,117220.0,117210.0,0.1706339]
[1759327856905,0.17061934,117220.0,117210.0,0.1717539]
[1759327857108,0.18246976,117230.0,117210.0,0.17185841]
[1759327857312,0.17061934,117220.0,117210.0,0.17185841]
[1759327857512,0.17275934,117220.0,117210.0,0.17073841]
[1759327857932,0.17061934,117220.0,117210.0,0.17073841]
[1759327858181,0.17061934,117220.0,117210.0,0.1889218]
[1759327858562,0.17061934,117220.0,117210.0,0.19192551]
[1759327858998,0.27185523,117230.0,117210.0,0.19192551]
[1759327859180,0.18246976,117230.0,117210.0,0.19192551]
[1759327859430,0.17061934,117220.0,117210.0,0.19192551]
[1759327859647,0.18246976,117230.0,117220.0,0.17061934]
[1759327859891,0.17924976,117230.0,117220.0,0.17061934]
[1759327860243,0.18138976,117230.0,117210.0,0.17374212]
[1759327860603,0.18460976,117230.0,117220.0,0.00010451]
[1759327860748,0.18460976,117230.0,117220.0,0.17072385]
[1759327861387,0.18460976,117230.0,117220.0,0.00010451]
[1759327861684,0.17924976,117230.0,117220.0,0.17072385]
[1759327861925,0.00011458,117230.0,117220.0,0.18890578]
[1759327862536,0.00011458,117230.0,117220.0,0.17184385]
[1759327862744,0.00011458,117230.0,117220.0,0.43336385]
[1759327863606,0.00011458,117230.0,117220.0,0.17184385]
[1759327863842,0.00011458,117230.0,117220.0,0.43336385]
[1759327864065,0.17607937,117230.0,117220.0,0.26158451]
[1759327864277,0.17607937,117230.0,117220.0,0.43220385]
[1759327864509,0.17285937,117230.0,117220.0,0.17072385]
[1759327865595,0.17607937,117230.0,117220.0,0.17072385]
[1759327865816,0.00547458,117230.0,117220.0,0.17072385]
[1759327866030,0.00011458,117230.0,117220.0,0.23246119]
[1759327866246,0.17071937,117230.0,117220.0,0.23246119]
[1759327866457,0.00011458,117230.0,117220.0,0.17184385]
[1759327866663,0.17071937,117230.0,117220.0,0.17184385]
[1759327866882,0.00011458,117230.0,117220.0,0.23246119]
[1759327867171,0.17071937,117230.0,117220.0,0.23246119]
[1759327867400,0.17607937,117230.0,117220.0,0.17072385]
[1759327867622,0.17285937,117230.0,117220.0,0.17072385]
[1759327867763,0.17607937,117230.0,117220.0,0.00010451]
[1759327867958,0.17607937,117230.0,117220.0,0.17072385]
[1759327868159,0.00225458,117230.0,117220.0,0.17072385]
[1759327868393,0.17059085,117240.0,117220.0,0.23246119]
[1759327868604,0.17059085,117240.0,117230.0,0.18766526]
[1759327869036,0.17059024,117240.0,117230.0,0.18766526]
[1759327869242,0.44403383,117250.0,117230.0,0.18776977]
[1759327869500,0.5334193,117250.0,117230.0,0.18776977]
[1759327869707,0.17273024,117240.0,117230.0,0.00010451]
[1759327869891,0.17595024,117240.0,117230.0,0.00010451]
[1759327870093,0.17595024,117240.0,117230.0,0.1707093]
[1759327870249,0.53029892,117250.0,117230.0,0.1707093]
[1759327870462,0.00033962,117250.0,117240.0,0.17059024]
[1759327870675,0.00247962,117250.0,117240.0,0.17059024]
[1759327870919,0.00033962,117250.0,117240.0,0.17171024]
[1759327871112,0.26566078,117250.0,117230.0,0.06072185]
[1759327871332,0.17381024,117240.0,117230.0,0.00010451]
[1759327871701,0.17273024,117240.0,117230.0,0.00010451]
[1759327872775,0.17595024,117240.0,117230.0,0.00010451]
[1759327873618,0.17059024,117240.0,117230.0,0.00010451]
[1759327873857,0.17059024,117240.0,117230.0,0.1718293]
[1759327874080,0.17059024,117240.0,117230.0,0.18888977]
[1759327874312,0.17059024,117240.0,117230.0,0.1718293]
[1759327874534,0.17059024,117240.0,117230.0,0.18888977]
[1759327874981,0.17059024,117240.0,117230.0,0.1718293]
[1759327875222,0.17059024,117240.0,117230.0,0.00010451]
[1759327875433,0.17595024,117240.0,117230.0,0.00010451]
[1759327876226,0.17059024,117240.0,117230.0,0.01716498]
[1759327876462,0.17595024,117240.0,117230.0,0.18776977]
[1759327876672,0.17595024,117240.0,117230.0,0.01716498]
[1759327877400,0.17595024,117240.0,117230.0,0.00010451]
[1759327878022,0.17595024,117240.0,117230.0,0.01716498]
[1759327878228,0.17595024,117240.0,117230.0,0.00010451]
[1759327878892,0.17595024,117240.0,117230.0,0.01716498]
[1759327879075,0.17273024,117240.0,117230.0,0.01716498]
[1759327879540,0.17595024,117240.0,117230.0,0.01716498]
[1759327879741,0.17595024,117240.0,117230.0,0.00010451]
[1759327879962,0.17595024,117240.0,117230.0,0.1707093]
[1759327880181,0.17059024,117240.0,117230.0,0.1718293]
[1759327880403,0.17091531,117250.0,117230.0,0.1718293]
[1759327880618,0.17413531,117250.0,117240.0,0.17059024]
[1759327880805,0.17091531,117250.0,117240.0,0.17059024]
[1759327881005,0.17091531,117250.0,117230.0,0.49248664]
[1759327881221,0.17059024,117240.0,117230.0,0.49248664]
[1759327881432,0.17589024,117240.0,117230.0,0.00010451]
[1759327882064,0.52643571,117240.0,117230.0,0.00010451]
[1759327882420,0.93099563,117240.0,117230.0,0.00010451]
[1759327882626,1.04982753,117240.0,117230.0,0.00010451]
[1759327886900,0.69998753,117240.0,117230.0,0.00010451]
[1759327887330,1.04974753,117240.0,117230.0,0.00010451]
[1759327888579,1.04974753,117240.0,117230.0,1e-08]
[1759327890400,0.69998753,117240.0,117230.0,1e-08]
[1759327890862,0.70418621,117240.0,117230.0,1e-08]
[1759327891083,1.40882621,117240.0,117230.0,1e-08]
[1759327891908,1.41680317,117240.0,117230.0,1e-08]
[1759327892085,0.17066302,117190.0,117180.0,0.23886972]
[1759327892300,0.17066302,117190.0,117180.0,0.00112]
[1759327892301,0.43170302,117190.0,117180.0,0.00112]
[1759327892703,0.43700302,117190.0,117170.0,0.23976058]
[1759327892905,0.17389759,117180.0,117170.0,0.06061734]
[1759327893089,0.43489759,117180.0,117170.0,0.06061734]
[1759327893290,0.261,117180.0,117170.0,0.17265185]
[1759327893664,0.26004849,117190.0,117180.0,0.17067759]
[1759327893891,0.52104849,117190.0,117180.0,0.17179759]
[1759327894122,0.26004849,117190.0,117180.0,0.17179759]
[1759327894251,0.52104849,117190.0,117180.0,0.17179759]
[1759327894455,0.52104849,117190.0,117180.0,0.00112]
[1759327894816,0.26004849,117190.0,117180.0,0.17179759]
[1759327895021,0.52312849,117190.0,117180.0,0.00419468]
[1759327895243,0.17067759,117180.0,117170.0,0.0001397]
[1759327895426,0.17067759,117180.0,117170.0,0.17083185]
[1759327895850,0.17275759,117180.0,117170.0,0.17083185]
[1759327896075,0.26536306,117180.0,117170.0,0.0001397]
[1759327896293,0.52632306,117180.0,117170.0,0.0001397]
[1759327896902,0.52632306,117180.0,117170.0,0.00426219]
[1759327897109,0.26536306,117180.0,117170.0,0.0001397]
[1759327897326,0.52632306,117180.0,117170.0,0.0001397]
[1759327897775,0.26536306,117180.0,117170.0,0.0001397]
[1759327897984,0.52632306,117180.0,117170.0,0.0001397]
[1759327898842,0.26536306,117180.0,117170.0,0.0001397]
[1759327899029,0.52310306,117180.0,117170.0,0.0001397]
[1759327899268,0.52632306,117180.0,117170.0,0.0001397]
[1759327899479,0.52587954,117180.0,117170.0,0.00439739]
[1759327899704,0.52587954,117180.0,117170.0,0.0001397]
[1759327900442,0.52583954,117180.0,117170.0,0.17083185]
[1759327900791,0.52583954,117180.0,117170.0,0.0001397]
[1759327901034,0.26491954,117180.0,117170.0,0.17083185]
[1759327901234,0.52583954,117180.0,117170.0,0.17083185]
[1759327901448,0.26006306,117180.0,117170.0,0.17195185]
[1759327901619,0.52094306,117180.0,117170.0,0.17195185]
[1759327902037,0.52302306,117180.0,117170.0,0.17083185]
[1759327902241,0.52624306,117180.0,117170.0,0.0001397]
[1759327902436,0.52624306,117180.0,117170.0,0.17083185]
[1759327902787,0.52302306,117180.0,117170.0,0.17495852]
[1759327902937,0.26214306,117180.0,117170.0,0.17495852]
[1759327903141,0.17067759,117180.0,117170.0,0.17607852]
[1759327903361,0.43363759,117180.0,117170.0,0.00426637]
[1759327903671,0.43685759,117180.0,117170.0,0.00426637]
[1759327904473,0.43685759,117180.0,117170.0,0.17495852]
[1759327905544,0.43685759,117180.0,117170.0,0.00426637]
[1759327905947,0.43685759,117180.0,117170.0,0.17495852]
[1759327907650,0.43363759,117180.0,117170.0,0.17607852]
[1759327907844,0.00208,117180.0,117170.0,0.17607852]
[1759327908048,0.18240088,117200.0,117180.0,0.17067759]
[1759327908244,0.08938547,117200.0,117190.0,0.17178302]
[1759327908448,0.26076,117200.0,117190.0,0.17178302]
[1759327908606,0.43140846,117200.0,117190.0,0.17178302]
[1759327909017,0.1824132,117210.0,117200.0,0.17064846]
[1759327909231,0.53463867,117210.0,117190.0,0.17066302]
[1759327909483,0.17064846,117200.0,117190.0,0.17066302]
[1759327909870,0.43140846,117200.0,117190.0,0.17178302]
[1759327910203,0.43140846,117200.0,117190.0,0.00112]
[1759327910406,0.43348846,117200.0,117190.0,0.17178302]
[1759327910613,0.27179867,117210.0,117190.0,0.17178302]
[1759327910906,0.26072,117200.0,117190.0,0.17178302]
[1759327911105,0.43345846,117200.0,117190.0,0.17178302]
[1759327911559,0.43345846,117200.0,117180.0,0.17921146]
[1759327911764,0.43660846,117200.0,117180.0,0.1706773]
[1759327911975,0.43136846,117200.0,117190.0,0.17178302]
[1759327912180,0.43660846,117200.0,117180.0,0.1706773]
[1759327912386,0.17066302,117190.0,117180.0,0.17067759]
[1759327912598,0.17064846,117200.0,117190.0,0.00112]
[1759327912918,0.43132846,117200.0,117190.0,0.17178302]
[1759327913100,0.43341846,117200.0,117190.0,0.17178302]
[1759327913329,0.43656846,117200.0,117180.0,0.17067759]
[1759327913553,0.43656846,117200.0,117170.0,0.18349312]
[1759327913554,0.17381302,117190.0,117170.0,0.18349312]
[1759327913773,0.17381302,117190.0,117170.0,0.52349312]
[1759327913999,0.17276759,117180.0,117170.0,0.00426637]
[1759327914208,0.43655759,117180.0,117170.0,0.00426637]
[1759327914862,0.52602784,117180.0,117170.0,0.00426637]
[1759327916497,0.52287784,117180.0,117170.0,0.17495852]
[1759327916715,0.52287784,117180.0,117170.0,0.00426637]
[1759327916942,0.52602784,117180.0,117170.0,0.00426637]
[1759327920000,0.52602784,117180.0,117170.0,0.0001397]
[1759327920216,0.26538784,117180.0,117170.0,0.0001397]
[1759327920714,0.43132237,117180.0,117170.0,0.0012597]
[1759327920930,0.43656237,117180.0,117170.0,0.0001397]
[1759327921155,0.26538784,117180.0,117170.0,0.0001397]
[1759327921580,0.52590784,117180.0,117170.0,0.0001397]
[1759327921803,0.26533323,117180.0,117170.0,0.0001397]
[1759327922019,0.52585323,117180.0,117170.0,0.0001397]
[1759327922242,0.26533323,117180.0,117170.0,0.0001397]
[1759327922597,0.52585323,117180.0,117170.0,0.0001397]
[1759327922972,0.26533323,117180.0,117170.0,0.0001397]
[1759327923106,0.52585323,117180.0,117170.0,0.0001397]
[1759327923538,0.55600513,117180.0,117170.0,0.0001397]
[1759327923730,0.89600513,117180.0,117170.0,0.0001397]
[1759327923927,0.63548513,117180.0,117170.0,0.0001397]
[1759327924137,0.98468513,117180.0,117170.0,0.0001397]
[1759327924369,0.99318513,117180.0,117170.0,0.0001397]
[1759327924589,0.99318513,117180.0,117170.0,1e-08]
[1759327924833,1.00117244,117180.0,117170.0,1e-08]
[1759327925492,1.00113244,117180.0,117170.0,1e-08]
[1759327925697,0.65197244,117180.0,117170.0,1e-08]
[1759327925900,0.61383323,117180.0,117170.0,1e-08]
[1759327926102,0.68817511,117180.0,117170.0,1e-08]
[1759327926313,0.59945511,117180.0,117170.0,1e-08]
[1759327926709,0.59095511,117180.0,117170.0,1e-08]
[1759327928610,0.33051511,117180.0,117170.0,1e-08]
[1759327928818,0.59095511,117180.0,117170.0,1e-08]
[1759327929446,0.59091511,117180.0,117170.0,1e-08]
[1759327930179,0.62106701,117180.0,117170.0,1e-08]
[1759327930387,0.96106701,117180.0,117170.0,1e-08]
[1759327931243,0.70066701,117180.0,117170.0,1e-08]
[1759327931462,1.04978701,117180.0,117170.0,1e-08]
[1759327932833,0.70066701,117180.0,117170.0,1e-08]
[1759327933377,1.04978701,117180.0,117170.0,1e-08]
[1759327933982,0.70066701,117180.0,117170.0,1e-08]
[1759327934192,0.76777511,117180.0,117170.0,1e-08]
[1759327934396,1.02809511,117180.0,117170.0,1e-08]
[1759327934841,1.05824701,117180.0,117170.0,1e-08]
[1759327935055,1.06622347,117180.0,117170.0,1e-08]
[1759327935920,1.25493494,117180.0,117170.0,1e-08]
[1759327936128,1.81138494,117180.0,117170.0,1e-08]
[1759327936347,1.62267347,117180.0,117170.0,1e-08]
[1759327936560,2.07767347,117180.0,117170.0,1e-08]
[1759327937412,1.37359347,117180.0,117170.0,1e-08]
[1759327937628,1.24750347,117180.0,117170.0,1e-08]
[1759327937848,0.43575157,117180.0,117170.0,1e-08]
[1759327937980,1.03602422,117180.0,117170.0,1e-08]
[1759327938209,1.06617612,117180.0,117170.0,1e-08]
[1759327938644,0.67901511,117180.0,117170.0,1e-08]
[1759327938854,0.59401511,117180.0,117170.0,1e-08]
[1759327939126,0.59610511,117180.0,117170.0,1e-08]
[1759327939383,0.59925511,117180.0,117170.0,1e-08]
[1759327939959,0.53407323,117180.0,117170.0,1e-08]
[1759327940163,0.27383323,117180.0,117170.0,1e-08]
[1759327940366,0.53092323,117180.0,117170.0,1e-08]
[1759327941390,0.53403323,117180.0,117170.0,1e-08]
[1759327943234,0.27379323,117180.0,117170.0,1e-08]
[1759327943642,0.53395323,117180.0,117170.0,1e-08]
[1759327944920,0.56410513,117180.0,117170.0,1e-08]
[1759327945602,0.64394513,117180.0,117170.0,1e-08]
[1759327945805,0.99282513,117180.0,117170.0,1e-08]
[1759327946236,1.0815366,117180.0,117170.0,1e-08]
[1759327946443,1.00080413,117180.0,117170.0,1e-08]
[1759327946658,0.99278513,117180.0,117170.0,1e-08]
[1759327947109,1.00076413,117180.0,117170.0,1e-08]
[1759327947335,0.99278513,117180.0,117170.0,1e-08]
[1759327947552,0.90402513,117180.0,117170.0,1e-08]
[1759327947755,0.73270513,117180.0,117170.0,1e-08]
[1759327947960,0.99278513,117180.0,117170.0,1e-08]
[1759327948815,1.05800541,117180.0,117170.0,1e-08]
[1759327949442,1.02781351,117180.0,117170.0,1e-08]
[1759327949859,1.05796541,117180.0,117170.0,1e-08]
[1759327950673,1.06594709,117180.0,117170.0,1e-08]
[1759327950959,0.71714709,117180.0,117170.0,1e-08]
[1759327951193,0.70916541,117180.0,117170.0,1e-08]
[1759327951408,1.05796541,117180.0,117170.0,1e-08]
[1759327951828,0.70916541,117180.0,117170.0,1e-08]
[1759327952030,0.62396541,117180.0,117170.0,1e-08]
[1759327952234,0.62918541,117180.0,117170.0,1e-08]
[1759327952821,0.62068541,117180.0,117170.0,1e-08]
[1759327953442,0.26009323,117180.0,117170.0,0.00112001]
[1759327953643,0.52009323,117180.0,117170.0,0.00112001]
[1759327953848,0.26216323,117180.0,117170.0,1e-08]
[1759327953982,0.52527323,117180.0,117170.0,1e-08]
[1759327954485,0.26531323,117180.0,117170.0,1e-08]
[1759327954679,0.52005323,117180.0,117170.0,1e-08]
[1759327954820,0.52212323,117180.0,117170.0,1e-08]
[1759327955029,0.52527323,117180.0,117170.0,1e-08]
[1759327956385,0.26009323,117180.0,117170.0,1e-08]
[1759327956592,0.52523323,117180.0,117170.0,1e-08]
[1759327961930,0.26531323,117180.0,117170.0,1e-08]
[1759327962086,0.52515323,117180.0,117170.0,1e-08]
[1759327962470,0.52511323,117180.0,117170.0,1e-08]
[1759327963293,0.59052554,117180.0,117170.0,1e-08]
[1759327963740,0.96067744,117180.0,117170.0,1e-08]
[1759327964341,0.96866712,117180.0,117170.0,1e-08]
[1759327966279,1.05738712,117180.0,117170.0,1e-08]
[1759327966568,0.70886712,117180.0,117170.0,1e-08]
[1759327966781,0.96858712,117180.0,117170.0,1e-08]
[1759327966985,0.70886712,117180.0,117170.0,1e-08]
[1759327967193,0.96858712,117180.0,117170.0,1e-08]
[1759327967398,1.06584712,117180.0,117170.0,1e-08]
[1759327968450,1.06580712,117180.0,117170.0,1e-08]
[1759327969045,0.71736712,117180.0,117170.0,1e-08]
[1759327969249,0.97704712,117180.0,117170.0,1e-08]
[1759327969458,0.71736712,117180.0,117170.0,1e-08]
[1759327969945,1.06580712,117180.0,117170.0,1e-08]
[1759327970523,1.05781744,117180.0,117170.0,1e-08]
[1759327970721,1.06580908,117180.0,117170.0,1e-08]
[1759327971238,1.05781744,117180.0,117170.0,1e-08]
[1759327972140,1.06580985,117180.0,117170.0,1e-08]
[1759327972352,1.06576985,117180.0,117170.0,1e-08]
[1759327972867,0.71736985,117180.0,117170.0,1e-08]
[1759327973069,1.06576985,117180.0,117170.0,1e-08]
[1759327975088,0.71736985,117180.0,117170.0,1e-08]
[1759327975307,1.06572985,117180.0,117170.0,1e-08]
[1759327975912,0.70937744,117180.0,117170.0,1e-08]
[1759327976124,0.33400554,117180.0,117170.0,0.00112001]
[1759327976339,0.59356554,117180.0,117170.0,0.00112001]
[1759327976554,0.59568554,117180.0,117170.0,1e-08]
[1759327976769,0.59887554,117180.0,117170.0,1e-08]
[1759327976948,0.59879076,117180.0,117170.0,1e-08]
[1759327977690,0.33923076,117180.0,117170.0,1e-08]
[1759327977892,0.33604076,117180.0,117170.0,1e-08]
[1759327978133,0.59875076,117180.0,117170.0,1e-08]
[1759327978556,0.26850845,117180.0,117170.0,0.00112001]
[1759327978771,0.26850845,117180.0,117170.0,0.00182001]
[1759327978954,0.52802845,117180.0,117170.0,0.00182001]
[1759327979390,0.52802845,117180.0,117170.0,0.00112001]
[1759327979788,0.52802845,117180.0,117170.0,1e-08]
[1759327980029,0.52798845,117180.0,117170.0,0.00112001]
[1759327980206,0.27062845,117180.0,117170.0,1e-08]
[1759327980452,0.53010845,117180.0,117170.0,1e-08]
[1759327982074,0.52798845,117180.0,117170.0,1e-08]
[1759327982270,0.52798845,117180.0,117170.0,0.00112001]
[1759327982271,0.26850845,117180.0,117170.0,0.00112001]
[1759327982502,0.52794845,117180.0,117170.0,0.00112001]
[1759327982699,0.51944845,117180.0,117170.0,0.00112001]
[1759327982907,0.52156845,117180.0,117170.0,1e-08]
[1759327984552,0.52475845,117180.0,117170.0,1e-08]
[1759327985667,0.86475845,117180.0,117170.0,1e-08]
[1759327987122,0.63547035,117180.0,117170.0,1e-08]
[1759327987541,0.98355035,117180.0,117170.0,1e-08]
[1759327987750,0.17072129,117150.0,117140.0,0.00762453]
[1759327987897,0.17073587,117140.0,117130.0,0.23990495]
[1759327988095,0.17073587,117140.0,117130.0,0.2487877]
[1759327989145,0.51942676,117150.0,117130.0,0.2487877]
[1759327989146,0.08938547,117150.0,117140.0,0.17073587]
[1759327989342,0.179252,117170.0,117150.0,0.17072129]
[1759327989507,0.26863747,117170.0,117160.0,0.17182672]
[1759327989715,0.52791747,117170.0,117160.0,0.17252672]
[1759327989970,0.52791747,117170.0,117160.0,0.17182672]
[1759327990135,0.52787747,117170.0,117160.0,0.17182672]
[1759327990346,0.26863747,117170.0,117160.0,0.17182672]
[1759327990617,0.52787747,117170.0,117160.0,0.17182672]
[1759327992031,0.52787747,117170.0,117160.0,0.23244406]
[1759327992258,0.52787747,117170.0,117160.0,0.17182672]
[1759327992529,0.08938547,117170.0,117160.0,0.18889739]
[1759327992742,0.17069215,117170.0,117160.0,0.17182672]
[1759327993183,0.42989215,117170.0,117160.0,0.17182672]
[1759327993571,0.17070672,117160.0,117150.0,0.06061734]
[1759327993781,0.17070672,117160.0,117150.0,0.23133863]
[1759327994156,0.26007811,117170.0,117160.0,0.17070672]
[1759327994353,0.51923811,117170.0,117160.0,0.17182672]
[1759327994747,0.26007811,117170.0,117160.0,0.17182672]
[1759327994975,0.42985264,117170.0,117160.0,0.17182672]
[1759327995565,0.17069264,117170.0,117160.0,0.17182672]
[1759327995773,0.42985264,117170.0,117160.0,0.17182672]
[1759327995936,0.42981264,117170.0,117160.0,0.17182672]
[1759327996300,0.17070672,117160.0,117150.0,0.23133863]
[1759327996543,0.17282672,117160.0,117150.0,0.06061734]
[1759327996767,0.17070672,117160.0,117150.0,0.23245863]
[1759327996984,0.42981264,117170.0,117160.0,0.17070672]
[1759327997191,0.43193264,117170.0,117150.0,0.23133863]
[1759327997314,0.43512264,117170.0,117150.0,0.23133863]
[1759327997717,0.17070672,117160.0,117150.0,0.23133863]
[1759327998595,0.43300264,117170.0,117150.0,0.23245863]
[1759327998719,0.17070672,117160.0,117150.0,0.23245863]
[1759327999146,0.17282672,117160.0,117150.0,0.23133863]
[1759327999346,0.17282672,117160.0,117150.0,0.06061734]
[1759327999554,0.17601672,117160.0,117150.0,0.06061734]
[1759327999723,0.17070672,117160.0,117150.0,0.23245863]
[1759327999916,0.17574672,117160.0,117150.0,0.23133863]
[1759328000207,0.17070672,117160.0,117150.0,0.23245863]
[1759328000440,0.51911811,117170.0,117150.0,0.23245863]
[1759328000644,0.17276672,117160.0,117150.0,0.23133863]
[1759328000857,0.17581672,117160.0,117150.0,0.06061734]
[1759328001776,0.17072129,117150.0,117140.0,0.06061734]
[1759328001930,0.17072129,117150.0,117140.0,0.23247321]
[1759328002877,0.17072129,117150.0,117140.0,0.06173734]
[1759328003089,0.17072129,117150.0,117140.0,0.23247321]
[1759328005091,0.17278129,117150.0,117140.0,0.06061734]
[1759328005317,0.17583129,117150.0,117140.0,0.06061734]
[1759328005520,0.52413676,117150.0,117140.0,0.06061734]
[1759328008169,0.17073587,117140.0,117130.0,0.06838009]
[1759328008370,0.26317134,117140.0,117130.0,0.06084349]
[1759328008492,0.26317134,117140.0,117130.0,0.00022615]
[1759328008493,0.26523134,117140.0,117130.0,0.00022615]
[1759328009155,0.52411134,117140.0,117130.0,0.00022615]
[1759328009397,0.61287134,117140.0,117130.0,0.00022615]
[1759328010091,0.26523134,117140.0,117130.0,0.00022615]
[1759328010293,0.61287134,117140.0,117130.0,0.00022615]
[1759328010722,0.26523134,117140.0,117130.0,0.00022615]
[1759328010936,0.52407134,117140.0,117130.0,0.00022615]
[1759328011153,0.52102134,117140.0,117130.0,0.00022615]
[1759328011413,0.52407134,117140.0,117130.0,0.00022615]
[1759328013155,0.55422324,117140.0,117130.0,0.00022615]
[1759328013342,0.89422324,117140.0,117130.0,0.00022615]
[1759328013543,0.98293471,117140.0,117130.0,0.00022615]
[1759328014414,0.89422324,117140.0,117130.0,0.00022615]
[1759328014768,0.63538324,117140.0,117130.0,0.00022615]
[1759328014974,0.98294324,117140.0,117130.0,0.00022615]
[1759328015622,0.63538324,117140.0,117130.0,0.00022615]
[1759328015833,0.98290324,117140.0,117130.0,0.00022615]
[1759328016027,0.99140324,117140.0,117130.0,0.00022615]
[1759328016257,0.64388324,117140.0,117130.0,0.00022615]
[1759328016428,0.99140324,117140.0,117130.0,0.00022615]
[1759328017158,0.90264324,117140.0,117130.0,0.00022615]